Workbook

Sheet Eingabe
A1: Eco-Design Daten Eingabe
A2: Verbundanlage:
A3: Heizkessel, Zusatzheizkessel, Solaranlage
A4: Typenbezeichnung | C4: Type
A5: Hersteller | C5: Hersteller
A6: =VLOOKUP(A3,Daten!B2:C7,2,FALSE) -> Nennheizleistung des Heizkessels in kW | B6: Prated | C6: 15 | E6: =IF(C6>70,"Achtung! Kein Label erforderlich!","") -> 
A7: Ist die Warmwasserbereitungs-Energieeffizienz des Kessels hwh bekannt? | C7: JA
A8: Warmwasserbereitungs-Energieeffizienz | B8: hwh | C8: 0.84 | E8: hwh,calc | F8: =IF(l_Blatt<3,Zwischenergebnisse!E52,Zwischenergebnisse!H52) -> 0.8411707654
A9: Nennleistung bei Hochtemperaturbetrieb in kW | B9: P4 | C9: 10
A10: Wärmeverlust im Bereitschaftszustand in kW | B10: Pstby | C10: 0.05
A11: Hilfsstromverbrauch bei Vollast in kW | B11: elmax | C11: 0.12
A12: Hilsstromverbrauch im Bereitschaftszustand in kW | B12: PSB | C12: 0.005
A13: Energieeffizienz bei Nennleistung und Hochtemperaturbetrieb in % | B13: h4 | C13: 0.95
A14: Raumheizungs-Energieeffizienz in % | B14: hs | C14: 0.95
A15: Raumheizungs-Energieeffizienz bei kälteren Klimaverhältnissen | B15: hs, kalt | C15: 1.06
A16: Raumheizungs-Energieeffizienz bei wärmeren Klimaverhältnissen | B16: hs, warm | C16: 1.06
A17: COP der Wärmepumpe | B17: COPN | C17: 4
A18: Betriebsart der Wärmepumpe | C18: Außenluft mittel
A19: Ist ein Zusatzheizkessel vorhanden? | C19: NEIN
A20: Nennheizleistung des Zusatzheizkessels in kW | B20: Psup | C20: 10
A21: Raumheizungs-Energieeffizienz des Zusatzheizkessels ηs sup in % | B21: ηs sup | C21: 0.98
A22: Ist eine Zusatzwärmepumpe vorhanden? | C22: NEIN
A23: Nennheizleistung der Zusatzwärmepumpe in kW | B23: Psup,wp | C23: 12
A24: Raumheizungs-Energieeffizienz der Zusatzwärmepumpe ηs sup in % | B24: ηs sup,wp | C24: 1.2
A25: Temperaturregelung, Reglerklasse | C25: VI | E25: =VLOOKUP(C25,Daten!A10:B18,2,FALSE) -> Witterungsgeführte Regelung, Raumaufschaltung, modulierend
A26: Ist eine Solaranlage vorhanden? | C26: NEIN
A27: Speichervolumen in Liter | B27: V | C27: 300
A28: Stillstandswärmeverlustverlust des Speichers in W | B28: S | C28: 60 | D28: oder | E28: 1.44 | F28: kWh/24h | G28: =(16.66+8.33*C27^0.4)*24/1000 -> 2.357353406 | H28: kWh/24h
A29: Kollektor-Aperturfläche in m² | B29: Aap | C29: 2.26 | D29: Asol | E29: =Aap*_n -> 6.78 | F29: m²
A30: Anzahl der Kollektoren | B30: n | C30: 3
A31: Kollektorwirkungsgrad in % | B31: h0,col | C31: 0.82
A32: Wärmedurchgangskoeffizient in W/m²K | B32: a1 | C32: 3.821
A33: temperaturabhängiger Wärmedurchgangskoeffizient in W/m²K² | B33: a2 | C33: 0.0108
A34: Winkelkorrekturfaktor | B34: IAM | C34: 0.96
A35: Leistung der Solar-Umwälzpumpe in W | B35: solpump | C35: 35
A36: Standby-Leistung der Solar-Regler in W | B36: solstdby | C36: 4
A37: mittlere Umgebungstemperatur am Speicher in °C | B37: Ta | C37: 20
A38: Zapfprofil des Speichers | C38: XL | E38: =VLOOKUP(C38,Daten!A19:B28,2,FALSE) -> bis zu 3 Bäder mit Badewanne, Dusche und Waschbecken mit 55°C
A44: Bitte alle blau hinterlegten Felder ausfüllen bzw. den geeigneten Wert auswählen.

Sheet Daten (hidden)
A1: Blatt | B1: Art der Verbund-Anlage | C1: Text 1 | D1: Text 2
A2: 1 | B2: Heizkessel, Zusatzheizkessel, Solaranlage | C2: Nennheizleistung des Heizkessels in kW | D2: Jahreszeitbedingte Raumheizungs-Energieeffizienz des Heizkessels
A3: 2 | B3: Kraft-Wärme-Kopplung, Solaranlage | C3: Nennheizleistung der KWK-Anlage in kW | D3: Jahreszeitbedingte Raumheizungs-Energieeffizienz des Raumheizgeräts mit Kraft-Wärme-Kopplung
A4: 3 | B4: Wärmepumpe, Zusatzheizkessel, Solaranlage | C4: Nennheizleistung der Wärmepumpe in kW | D4: Jahreszeitbedingte Raumheizungs-Energieeffizienz der Wärmepumpe
A5: 4 | B5: Niedertemperatur-Wärmepumpe, Zusatzheizkessel, Solaranlage | C5: Nennheizleistung der Niedertemperatur-Wärmepumpe in kW | D5: Jahreszeitbedingte Raumheizungs-Energieeffizienz der Niedertemperatur-Wärmepumpe
A6: 5 | B6: Zusatzdatenblatt für Warmwasserbereitung | D6: Warmwasserbereitungs-Energieeffizienz des Kombi-Heizgerätes
A7: 6 | B7: Warmwasserbereiter, Solaranlage (ohne Heizung)
A9: Klasse | B9: Regelungstyp | C9: Faktor in %
A10: k.a. | B10: keine Angabe | C10: 0
A11: I | B11: Raumthermostat, ON/OFF | C11: 0.01
A12: II | B12: Witterungsgeführte Regelung, modulierend | C12: 0.02
A13: III | B13: Witterungsgeführte Regelung, ON/OFF | C13: 0.015
A14: IV | B14: Raumthermostat, TPI | C14: 0.02
A15: V | B15: Raumthermostat, modulierend | C15: 0.03
A16: VI | B16: Witterungsgeführte Regelung, Raumaufschaltung, modulierend | C16: 0.04
A17: VII | B17: Witterungsgeführte Regelung, Raumaufschaltung, stufiges Output | C17: 0.035
A18: VIII | B18: Multi-Sensor-Raumregelung mit mindestens 3 Sensoren | C18: 0.05
A20: Zapfprofil | B20: Typische Anwendung | C20: Qref in kWh
A21: 3XS | B21: Kleines Einzelwaschbecken mit 35°C | C21: 0.345
A22: XXS | B22: Einzelwaschbecken mit 35°C | C22: 2.1
A23: XS | B23: Dusche klein | C23: 2.1
A24: S | B24: Dusche und Einzelwaschbecken mit 35°C | C24: 2.1
A25: M | B25: Duschen und Spüle mit 55°C | C25: 5.845
A26: L | B26: Badewanne, Dusche und Waschbecken mit 55°C | C26: 11.655
A27: XL | B27: bis zu 3 Bäder mit Badewanne, Dusche und Waschbecken mit 55°C | C27: 19.07
A28: XXL | B28: bis zu 3 simultan benützte Bäder mit Badewanne, Dusche und Waschbecken mit 55°C | C28: 24.53
A30: Frage
A31: JA
A32: NEIN
A34: =ISERROR(SEARCH("Wärmepumpe",Eingabe!A3)) -> TRUE

Sheet Zwischenergebnisse (hidden)
A2: Profil | B2: Qref | C2: k | D2: V40,min | E2: A+++ | F2: A+++ | G2: A++ | H2: A+ | I2: A | J2: B | K2: C | L2: D | M2: E | N2: F | O2: G
A3: 3XS | B3: 0.345 | C3: 0.23 | E3: 10 | F3: 0.62 | G3: 0.53 | H3: 0.44 | I3: 0.35 | J3: 0.32 | K3: 0.29 | L3: 0.26 | M3: 0.22 | N3: 0.19
A4: XXS | B4: 2.1 | C4: 0.23 | E4: 10 | F4: 0.62 | G4: 0.53 | H4: 0.44 | I4: 0.35 | J4: 0.32 | K4: 0.29 | L4: 0.26 | M4: 0.23 | N4: 0.2
A5: XS | B5: 2.1 | C5: 0.23 | E5: 10 | F5: 0.69 | G5: 0.61 | H5: 0.53 | I5: 0.38 | J5: 0.35 | K5: 0.32 | L5: 0.29 | M5: 0.26 | N5: 0.23
A6: S | B6: 2.1 | C6: 0.23 | E6: 10 | F6: 0.9 | G6: 0.72 | H6: 0.55 | I6: 0.38 | J6: 0.35 | K6: 0.32 | L6: 0.29 | M6: 0.26 | N6: 0.23
A7: M | B7: 5.845 | C7: 0.23 | D7: 65 | E7: 10 | F7: 1.63 | G7: 1.3 | H7: 1 | I7: 0.65 | J7: 0.39 | K7: 0.36 | L7: 0.33 | M7: 0.3 | N7: 0.27
A8: L | B8: 11.655 | C8: 0.23 | D8: 130 | E8: 10 | F8: 1.88 | G8: 1.5 | H8: 1.15 | I8: 0.75 | J8: 0.5 | K8: 0.37 | L8: 0.34 | M8: 0.3 | N8: 0.27
A9: XL | B9: 19.07 | C9: 0.23 | D9: 210 | E9: 10 | F9: 2 | G9: 1.6 | H9: 1.23 | I9: 0.8 | J9: 0.55 | K9: 0.38 | L9: 0.35 | M9: 0.3 | N9: 0.27
A10: XXL | B10: 24.53 | C10: 0 | D10: 300 | E10: 10 | F10: 2.13 | G10: 1.7 | H10: 1.31 | I10: 0.85 | J10: 0.6 | K10: 0.4 | L10: 0.36 | M10: 0.32 | N10: 0.28
A12: Label für Speicher
A13: Volumen | B13: V | C13: =Vnom -> 300 | D13: l
A14: Wärmeverlust | B14: S | C14: =SWV_W -> 60 | D14: W | E14: =SWV_KW -> 1.44
A15: Ergebnis | C15: =HLOOKUP(C14,B19:I21,3,1) -> B | D15: =HLOOKUP(C14,B19:I22,4,1) -> 5
A16: Tankeinstufung | C16: =HLOOKUP(C14,B19:I21,2,1) -> 0.86 | M16: B
C18: =C19*24/1000 -> 0.874586118 | D18: =D19*24/1000 -> 1.20273133 | E18: 1.681523949 | F18: 2.357353406 | G18: 2.93150462 | H18: 3.834039991 | I18: 4.659026812 | J18: kWh/24h
A19: S größer als | B19: 0 | C19: =5.5+3.16*$C$13^0.4 -> 36.44108825 | D19: =8.5+4.25*$C$13^0.4 -> 50.1138054 | E19: =12+5.93*$C$13^0.4 -> 70.06349789 | F19: =16.66+8.33*$C$13^0.4 -> 98.22305858 | G19: =21+10.33*$C$13^0.4 -> 122.1460258 | H19: =26+13.66*$C$13^0.4 -> 159.7516663 | I19: =31+16.66*$C$13^0.4 -> 194.1261172 | J19: W
A20: Tankeinstufung | B20: 0.95 | C20: 0.91 | D20: 0.86 | E20: 0.83 | F20: 0.81 | G20: 0.81 | H20: 0.81 | I20: 0.81 | J20: %
A21: Label | B21: A+ | C21: A | D21: B | E21: C | F21: D | G21: E | H21: F | I21: G
A22: Label-Einstufung | B22: 7 | C22: 6 | D22: 5 | E22: 4 | F22: 3 | G22: 2 | H22: 1 | I22: 0
A24: Suchkriterien
A25: =Daten!B1 -> Art der Verbund-Anlage
A26: =Eingabe!A3 -> Heizkessel, Zusatzheizkessel, Solaranlage
A27: Gewähltes Blatt: | B27: =DGET(Daten!A1:D7,"Blatt",A25:A26) -> 1
A29: Gewichtung des Vorzugsraumheizgerätes und des Zusatzheizgerätes | G29: Zuletzt verwendetes Datenblatt | J29: 1 | L29: Korrekturfaktor für Wärmepumpen | M29: f
B30: Warmwasserspeicher | G30: Solare Anlage vorhanden? | J30: JA | L30: Außenluft mittel | M30: 0.919
B31: Blatt 1 | D31: Blatt 2 bis 4 | G31: Temperaturregler? | J31: JA | L31: Außenluft kälter | M31: 0.84
A32: Psup/(Prated+Psup) | B32: ohne | C32: mit | D32: ohne | E32: mit | G32: Zusatzheizkessel oder WP? | L32: Außenluft wärmer | M32: 1.059
A33: 0 | B33: 0 | C33: 0 | D33: 1 | E33: 1 | G33: Errechnete Effizienz | J33: 99 | L33: Innenluft | M33: 0.888
A34: 0.1 | B34: 0.3 | C34: 0.37 | D34: 0.7 | E34: 0.63 | G34: Label | J34: 7 | L34: Sole | M34: 0.931
A35: 0.2 | B35: 0.55 | C35: 0.7 | D35: 0.45 | E35: 0.3 | L35: Wasser | M35: 0.914
A36: 0.3 | B36: 0.75 | C36: 0.85 | D36: 0.25 | E36: 0.15
A37: 0.4 | B37: 0.85 | C37: 0.94 | D37: 0.15 | E37: 0.06
A38: 0.5 | B38: 0.95 | C38: 0.98 | D38: 0.05 | E38: 0.02
A39: 0.6 | B39: 0.98 | C39: 1 | D39: 0.02 | E39: 0
A40: 0.7 | B40: 1 | C40: 1 | D40: 0 | E40: 0
A42: Kennwerte | D42: Bei Öl oder Gasbetrieb | G42: Bei Wärmepumpenbetrieb
A43: Qref | B43: =VLOOKUP(Eingabe!C38,A3:B10,2,FALSE) -> 19.07 | C43: kWh | D43: P4 | E43: =Eingabe!C9 -> 10 | F43: kW | G43: COPN | H43: =Eingabe!C17 -> 4
A44: Prated | B44: =Prated -> 15 | C44: kW | D44: Pstby | E44: =Eingabe!C10 -> 0.05 | F44: kW | G44: f | H44: =VLOOKUP(Eingabe!C18,Zwischenergebnisse!L30:M35,2,0) -> 0.919 | I44: =Eingabe!C18 -> Außenluft mittel
A45: Psup | B45: =IF(ZusatzHK="JA",Eingabe!C20,0)+IF(ZusatzWP="JA",Eingabe!C23,0) -> 0 | C45: kW | D45: PSB | E45: =Eingabe!C12 -> 0.005 | F45: kW
A46: Psup/(Prated+Psup) | B46: =Psup/(Prated+Psup) -> 0 | D46: elmax | E46: =Eingabe!C11 -> 0.12 | F46: kW
A47: Qnonsol,avg | B47: =Qnonsolavg -> 1496.619573 | C47: kWh | D47: h4 | E47: =Eingabe!C13 -> 0.95
A48: Qaux | B48: =(solpump*solhrs+solstdby*24*365)/1000 -> 105.04 | C48: kWh | D48: ton | E48: =(B43+(24-B43/E43)*E44)/E43 -> 2.017465 | F48: h
A49: hwh,nonsol | B49: =E52 -> 0.8411707654 | D49: Qelec | E49: =(24-E48)*E45+E48*E46 -> 0.352008475 | F49: kWh
A50: Qtota | B50: =B47/(1.1*E52-0.1)+2.5*B48 -> 2076.051618 | C50: kWh | D50: Qfuel | E50: =E48*E43/E47 -> 21.23647368 | F50: kWh
A51: Zeile | B51: =MATCH(B46,A33:A40,1) -> 1 | D51: k | E51: =IF(B43<24,0.23,0) -> 0.23
A52: Spalte | B52: =IF(Blattnr<=2,IF(Solaranlage="JA",3,2),IF(Blattnr<5,IF(Solaranlage="JA",5,4),IF(l_Blatt<=2,3,5))) -> 2 | D52: hwh_calc | E52: =0.95*B43/((1-E51)*E50+(2.5-E51)*E49+E51*B43) -> 0.8411707654 | G52: hwh_calc | H52: =0.95*H44*H43/2.5*B43/(B43+E14) -> 1.298805539 | O52: Energieeffizienz bei Wärmepumpen
A54: Blatt | B54: 1 | C54: 2 | D54: 3 | E54: 4 | F54: 5 | G54: 6
A55: Interpolation
A56: x1 | B56: =INDEX(A33:A40,B51,1) -> 0
A57: x2 | B57: =INDEX(A33:A40,B51+IF(B51=8,0,1),1) -> 0.1
A58: y1 | B58: =INDEX(A33:E40,B51,B52) -> 0
A59: y2 | B59: =INDEX(A33:E40,B51+IF(B51=8,0,1),B52) -> 0.3
A61: Blatt | B61: 1 | C61: 2 | D61: 3 | E61: 4 | F61: 5 | G61: 6
A62: "I" | B62: =Eingabe!$C$14 -> 0.95 | C62: =B62 -> 0.95 | D62: =B62 -> 0.95 | E62: =B62 -> 0.95 | F62: =IF(l_Blatt<3,IF(Eingabe!C7="JA",Eingabe!C8,Zwischenergebnisse!E52),IF(Eingabe!C7="JA",Eingabe!C8,H52)) -> 0.84 | G62: =F62 -> 0.84
A63: "II" | B63: =B58+(B59-B58)*(B46-B56)/(B57-B56) -> 0 | C63: =B63 -> 0 | D63: =B63 -> 0 | E63: =B63 -> 0 | F63: =IF(Eingabe!C26="JA",220*B43/B47,0) -> 0 | G63: =F63 -> 0
A64: "III" | B64: =294/11/B44 -> 1.781818182 | C64: =B64 -> 1.781818182 | D64: =B64 -> 1.781818182 | E64: =B64 -> 1.781818182 | F64: =IF(Eingabe!C26="JA",2.5*B48/(220*B43),0) -> 0 | G64: =F64 -> 0
A65: "IV" | B65: =115/11/B44 -> 0.696969697 | C65: =B65 -> 0.696969697 | D65: =B65 -> 0.696969697 | E65: =B65 -> 0.696969697
A66: "V" | D66: =ABS(Eingabe!C15-Eingabe!C14) -> 0.11 | E66: =D66 -> 0.11
A67: "VI" | D67: =ABS(Eingabe!C16-Eingabe!C14) -> 0.11 | E67: =D67 -> 0.11
A70: Kessel-Label
A71: WW-Label
C72: Textlänge
A73: 9 | B73: A+++ | C73: =LEN(B73) -> 4
A74: 8 | B74: A++ | C74: =LEN(B74) -> 3
A75: 7 | B75: A+ | C75: 2
A76: 6 | B76: A | C76: 1
A77: 5 | B77: B | C77: 1
A78: 4 | B78: C | C78: 1
A79: 3 | B79: D | C79: 1
A80: 2 | B80: E | C80: 1
A81: 1 | B81: F | C81: 1
A82: 0 | B82: G | C82: 1

Sheet SOLCAL (hidden)
A1: Calculation of Qnonsol and Qaux with the SOLCAL-Method
B2: Table 3 (annex VII)
A3: Load profiles of water heaters | D3: M | E3: L | F3: XL | G3: XXL
A4: Typical daily heat withdrawal | B4: Qref | C4: kWh/day | D4: 5.845 | E4: 11.655 | F4: 19.07 | G4: 24.53
B6: Position
B7: inside
B8: outside
A10: specific standing loss of the tank | B10: psbsol | C10: =SWV_W/(65-20) -> 1.333333333 | D10: W/K | E10: psbsol = SWV_W/(65-20)
A11: total collector apperture | B11: Asol | C11: =Asol -> 6.78 | D11: m² | E11: Asol = Aap x n
A12: loop losses in W/(m2K) | B12: UL | C12: =(6+0.3*Asol)/Asol -> 1.184955752 | D12: W/m²K | E12: UL = (6 + 0,3 × Asol) / Asol
A13: loop efficiency | B13: etaloop | C13: =1-(eta0*_a1)/100 -> 0.9686678 | E13: etaloop=1 - (η0 × a1) / 100
B14: Ac | C14: =_a1+40*_a2 -> 4.253 | E14: Ac = a1 + а2 × 40
A15: storage coefficient | B15: ccap | C15: =(75*Asol/Vnom)^0.25 -> 1.141017816 | E15: ccap = (75 × Asol / Vnom)^0,25
A16: number of active solar hours in h | B16: solhrs | C16: 2000 | D16: h
A17: cold water temperature | B17: Tcold | C17: 10 | D17: °C
A18: heat demand for the solar thermal system | B18: Lwh,tm | C18: =(Qref+1.09)*0.6*30.5 -> 368.928 | D18: kWh/month | F18: Lwh,tm = 30,5 × 0,6 × (Qref + 1,09)
B20: Touttm (monthly average daytime temperature in °C)
B21: Table 4 (annex VII)
C22: Month: | D22: Jan | E22: Feb | F22: Mar | G22: Apr | H22: May | I22: Jun | J22: Jul | K22: Aug | L22: Sep | M22: Oct | N22: Nov | O22: Dec
B23: Climate: | C23: Average | D23: 2.8 | E23: 2.6 | F23: 7.4 | G23: 12.2 | H23: 16.3 | I23: 19.8 | J23: 21 | K23: 22 | L23: 17 | M23: 11.9 | N23: 5.6 | O23: 3.2
C24: Colder | D24: -3.8 | E24: -4.1 | F24: -0.6 | G24: 5.2 | H24: 11 | I24: 16.5 | J24: 19.3 | K24: 18.4 | L24: 12.8 | M24: 6.7 | N24: 1.2 | O24: -3.5
C25: Warmer | D25: 9.5 | E25: 10.1 | F25: 11.6 | G25: 15.3 | H25: 21.4 | I25: 26.5 | J25: 28.8 | K25: 27.9 | L25: 23.6 | M25: 19 | N25: 14.5 | O25: 10.4
B27: Trefw (monthly average reference temperature) | G27: Trefw = 97,4 - 1,32 x Tout,tm
C28: Month: | D28: Jan | E28: Feb | F28: Mar | G28: Apr | H28: May | I28: Jun | J28: Jul | K28: Aug | L28: Sep | M28: Oct | N28: Nov | O28: Dec
B29: Climate: | C29: Average | D29: =97.4-1.32*D23 -> 93.704 | E29: =97.4-1.32*E23 -> 93.968 | F29: 87.632 | G29: 81.296 | H29: 75.884 | I29: 71.264 | J29: 69.68 | K29: 68.36 | L29: 74.96 | M29: 81.692 | N29: 90.008 | O29: 93.176
C30: Colder | D30: =97.4-1.32*D24 -> 102.416 | E30: 102.812 | F30: 98.192 | G30: 90.536 | H30: 82.88 | I30: 75.62 | J30: 71.924 | K30: 73.112 | L30: 80.504 | M30: 88.556 | N30: 95.816 | O30: 102.02
C31: Warmer | D31: =97.4-1.32*D25 -> 84.86 | E31: 84.068 | F31: 82.088 | G31: 77.204 | H31: 69.152 | I31: 62.42 | J31: 59.384 | K31: 60.572 | L31: 66.248 | M31: 72.32 | N31: 78.26 | O31: 83.672
B33: xa | C33: =(Asol*(Ac+UL)*etaloop*ccap*0.732)/Lwhtm -> 0.08085411278 | E33: xa = (Asol × (Ac + UL) × etaloop × ccap × 0,732) / Lwh,tm
B35: (Xtm) | C35: Xtm = xa x (Trefw — Touttm) | G35: (Xtm) = xa x (97,4 - 2,32 x Tout,tm)
C36: Month: | D36: Jan | E36: Feb | F36: Mar | G36: Apr | H36: May | I36: Jun | J36: Jul | K36: Aug | L36: Sep | M36: Oct | N36: Nov | O36: Dec
B37: Climate: | C37: Average | D37: =xa*(D29-D23) -> 7.349962268 | E37: 7.387478576 | F37: 6.487087176 | G37: 5.586695776 | H37: 4.817611456 | I37: 4.16107606 | J37: 3.93597821 | K37: 3.748396668 | L37: 4.686304377 | M37: 5.642970239 | N37: 6.824733951 | O37: 7.274929651
C38: Colder | D38: =xa*(D30-D24) -> 8.588000443 | E38: 8.644274905 | F38: 7.987739509 | G38: 6.899766568 | H38: 5.811793626 | I38: 4.780095147 | J38: 4.254866831 | K38: 4.423690218 | L38: 5.474146851 | M38: 6.618394255 | N38: 7.650092734 | O38: 8.53172598
C39: Warmer | D39: =xa*(D31-D25) -> 6.093165939 | E39: 5.980617014 | F39: 5.699244701 | G39: 5.005192997 | H39: 3.860945593 | I39: 2.904279731 | J39: 2.472842185 | K39: 2.641665573 | L39: 3.448266202 | M39: 4.311141293 | N39: 5.155258231 | O39: 5.924342551
A41: monthly aggregated coefficient X | B41: Xtm | C41: IF (Xtm) < 0 then 0 else (IF (Xtm) > 18 then 18 else (Xtm))
C42: Month: | D42: Jan | E42: Feb | F42: Mar | G42: Apr | H42: May | I42: Jun | J42: Jul | K42: Aug | L42: Sep | M42: Oct | N42: Nov | O42: Dec
B43: Climate: | C43: Average | D43: =IF(D37<0,0,IF(D37>18,18,D37)) -> 7.349962268 | E43: =IF(E37<0,0,IF(E37>18,18,E37)) -> 7.387478576 | F43: 6.487087176 | G43: 5.586695776 | H43: 4.817611456 | I43: 4.16107606 | J43: 3.93597821 | K43: 3.748396668 | L43: 4.686304377 | M43: 5.642970239 | N43: 6.824733951 | O43: 7.274929651
C44: Colder | D44: =IF(D38<0,0,IF(D38>18,18,D38)) -> 8.588000443 | E44: 8.644274905 | F44: 7.987739509 | G44: 6.899766568 | H44: 5.811793626 | I44: 4.780095147 | J44: 4.254866831 | K44: 4.423690218 | L44: 5.474146851 | M44: 6.618394255 | N44: 7.650092734 | O44: 8.53172598
C45: Warmer | D45: 6.093165939 | E45: 5.980617014 | F45: 5.699244701 | G45: 5.005192997 | H45: 3.860945593 | I45: 2.904279731 | J45: 2.472842185 | K45: 2.641665573 | L45: 3.448266202 | M45: 4.311141293 | N45: 5.155258231 | O45: 5.924342551
B47: QsolMtm (monthly average solar irradiation in W/m²)
B48: Table 5 (annex VII)
C49: Month: | D49: Jan | E49: Feb | F49: Mar | G49: Apr | H49: May | I49: Jun | J49: Jul | K49: Aug | L49: Sep | M49: Oct | N49: Nov | O49: Dec
B50: Climate: | C50: Average | D50: 70 | E50: 104 | F50: 149 | G50: 192 | H50: 221 | I50: 222 | J50: 232 | K50: 217 | L50: 176 | M50: 129 | N50: 80 | O50: 56
C51: Colder | D51: 22 | E51: 75 | F51: 124 | G51: 192 | H51: 234 | I51: 237 | J51: 238 | K51: 181 | L51: 120 | M51: 64 | N51: 23 | O51: 13
C52: Warmer | D52: 128 | E52: 137 | F52: 182 | G52: 227 | H52: 248 | I52: 268 | J52: 268 | K52: 263 | L52: 243 | M52: 175 | N52: 126 | O52: 109
B54: ya | C54: =(Asol*IAM*eta0*etaloop*0.732)/Lwhtm -> 0.01025791524 | D54: ya = (Asol × IAM × η0 × etaloop × 0,732) / Lwhtm
B56: (Ytm) | C56: Ytm = ya*QsolMtm
C57: Month: | D57: Jan | E57: Feb | F57: Mar | G57: Apr | H57: May | I57: Jun | J57: Jul | K57: Aug | L57: Sep | M57: Oct | N57: Nov | O57: Dec
B58: Climate: | C58: Average | D58: =ya*D50 -> 0.7180540668 | E58: =ya*E50 -> 1.066823185 | F58: =ya*F50 -> 1.528429371 | G58: =ya*G50 -> 1.969519726 | H58: =ya*H50 -> 2.266999268 | I58: =ya*I50 -> 2.277257183 | J58: =ya*J50 -> 2.379836336 | K58: =ya*K50 -> 2.225967607 | L58: =ya*L50 -> 1.805393082 | M58: =ya*M50 -> 1.323271066 | N58: =ya*N50 -> 0.8206332192 | O58: =ya*O50 -> 0.5744432534
C59: Colder | D59: =ya*D51 -> 0.2256741353 | E59: =ya*E51 -> 0.769343643 | F59: =ya*F51 -> 1.27198149 | G59: =ya*G51 -> 1.969519726 | H59: =ya*H51 -> 2.400352166 | I59: =ya*I51 -> 2.431125912 | J59: =ya*J51 -> 2.441383827 | K59: =ya*K51 -> 1.856682658 | L59: =ya*L51 -> 1.230949829 | M59: =ya*M51 -> 0.6565065753 | N59: =ya*N51 -> 0.2359320505 | O59: =ya*O51 -> 0.1333528981
C60: Warmer | D60: =ya*D52 -> 1.313013151 | E60: =ya*E52 -> 1.405334388 | F60: =ya*F52 -> 1.866940574 | G60: =ya*G52 -> 2.328546759 | H60: =ya*H52 -> 2.543962979 | I60: =ya*I52 -> 2.749121284 | J60: =ya*J52 -> 2.749121284 | K60: =ya*K52 -> 2.697831708 | L60: =ya*L52 -> 2.492673403 | M60: =ya*M52 -> 1.795135167 | N60: =ya*N52 -> 1.29249732 | O60: =ya*O52 -> 1.118112761
A62: monthly aggregated coefficient Y | B62: Ytm | C62: IF (Ytm) < 0 then 0 else (IF (Ytm) > 3 then 3 else (Ytm))
C63: Month: | D63: Jan | E63: Feb | F63: Mar | G63: Apr | H63: May | I63: Jun | J63: Jul | K63: Aug | L63: Sep | M63: Oct | N63: Nov | O63: Dec
B64: Climate: | C64: Average | D64: =IF(D58<0,0,IF(D58>3,3,D58)) -> 0.7180540668 | E64: =IF(E58<0,0,IF(E58>3,3,E58)) -> 1.066823185 | F64: 1.528429371 | G64: 1.969519726 | H64: 2.266999268 | I64: 2.277257183 | J64: 2.379836336 | K64: 2.225967607 | L64: 1.805393082 | M64: 1.323271066 | N64: 0.8206332192 | O64: 0.5744432534
C65: Colder | D65: =IF(D59<0,0,IF(D59>3,3,D59)) -> 0.2256741353 | E65: 0.769343643 | F65: 1.27198149 | G65: 1.969519726 | H65: 2.400352166 | I65: 2.431125912 | J65: 2.441383827 | K65: 1.856682658 | L65: 1.230949829 | M65: 0.6565065753 | N65: 0.2359320505 | O65: 0.1333528981
C66: Warmer | D66: 1.313013151 | E66: 1.405334388 | F66: 1.866940574 | G66: 2.328546759 | H66: 2.543962979 | I66: 2.749121284 | J66: 2.749121284 | K66: 2.697831708 | L66: 2.492673403 | M66: 1.795135167 | N66: 1.29249732 | O66: 1.118112761
B68: LsolW1,tm | C68: LsolW1tm = Lwhtm ×(1,029×Ytm - 0,065×Xtm - 0,245×Ytm2 + 0,0018 × Xtm2 + 0,0215×Ytm3)
C69: Month: | D69: Jan | E69: Feb | F69: Mar | G69: Apr | H69: May | I69: Jun | J69: Jul | K69: Aug | L69: Sep | M69: Oct | N69: Nov | O69: Dec
B70: Climate: | C70: Average | D70: =Lwhtm*(1.029*D64-0.065*D43-0.245*D64^2+0.0018*D43^2+0.0215*D64^3) -> 88.54534985 | E70: 170.8420043 | F70: 269.7840214 | G70: 344.4234546 | H70: 388.3855089 | I70: 401.1558319 | J70: 414.3426256 | K70: 404.1023649 | L70: 339.6443056 | M70: 248.2818885 | N70: 122.3187551 | O70: 50.44172348
C71: Colder | D71: =Lwhtm*(1.029*D65-0.065*D44-0.245*D65^2+0.0018*D44^2+0.0215*D65^3) -> -75.80549709 | E71: 84.50533347 | F71: 203.7829903 | G71: 323.8234354 | H71: 383.2154646 | I71: 403.2162506 | J71: 413.4853542 | K71: 350.9390934 | L71: 233.7658241 | M71: 82.89207493 | N71: -59.94866015 | O71: -107.2198027
C72: Warmer | D72: =Lwhtm*(1.029*D66-0.065*D45-0.245*D66^2+0.0018*D45^2+0.0215*D66^3) -> 239.1207325 | E72: 257.3411397 | F72: 330.2134133 | G72: 390.6434454 | H72: 428.6959038 | I72: 461.2802857 | J72: 470.0857243 | K72: 463.3385033 | L72: 432.7271408 | M72: 345.0523339 | N72: 250.8207891 | O72: 203.7929594
B74: LsolW1,tm | C74: IF LsolW1tm < 0 then 0 else LsolW1tm
C75: Month: | D75: Jan | E75: Feb | F75: Mar | G75: Apr | H75: May | I75: Jun | J75: Jul | K75: Aug | L75: Sep | M75: Oct | N75: Nov | O75: Dec
B76: Climate: | C76: Average | D76: =IF(D70<0,0,D70) -> 88.54534985 | E76: =IF(E70<0,0,E70) -> 170.8420043 | F76: 269.7840214 | G76: 344.4234546 | H76: 388.3855089 | I76: 401.1558319 | J76: 414.3426256 | K76: 404.1023649 | L76: 339.6443056 | M76: 248.2818885 | N76: 122.3187551 | O76: 50.44172348
C77: Colder | D77: =IF(D71<0,0,D71) -> 0 | E77: 84.50533347 | F77: 203.7829903 | G77: 323.8234354 | H77: 383.2154646 | I77: 403.2162506 | J77: 413.4853542 | K77: 350.9390934 | L77: 233.7658241 | M77: 82.89207493 | N77: 0 | O77: 0
C78: Warmer | D78: 239.1207325 | E78: 257.3411397 | F78: 330.2134133 | G78: 390.6434454 | H78: 428.6959038 | I78: 461.2802857 | J78: 470.0857243 | K78: 463.3385033 | L78: 432.7271408 | M78: 345.0523339 | N78: 250.8207891 | O78: 203.7929594
B80: Qbuftm | C80: Qbuftm = 0,732 × psbsol × (10 + 50 × LsolW1tm / Lwhtm − Ta)
C81: Month: | D81: Jan | E81: Feb | F81: Mar | G81: Apr | H81: May | I81: Jun | J81: Jul | K81: Aug | L81: Sep | M81: Oct | N81: Nov | O81: Dec
B82: Climate: | C82: Average | D82: =0.732*psbsol*(10+50*D76/Lwhtm-Ta) -> 1.952347863 | E82: =0.732*psbsol*(10+50*E76/Lwhtm-Ta) -> 12.83814872 | F82: 25.92571712 | G82: 35.79865801 | H82: 41.61374457 | I82: 43.30294073 | J82: 45.0472256 | K82: 43.69269377 | L82: 35.16649546 | M82: 23.08151964 | N82: 6.419729505 | O82: -3.087814354
C83: Colder | D83: =0.732*psbsol*(10+50*D77/Lwhtm-Ta) -> -9.76 | E83: 1.417954162 | F83: 17.195422 | G83: 33.07378775 | H83: 40.92987627 | I83: 43.57548288 | J83: 44.93382993 | K83: 36.660515 | L83: 21.16140531 | M83: 1.204560176 | N83: -9.76 | O83: -9.76
C84: Warmer | D84: =0.732*psbsol*(10+50*D78/Lwhtm-Ta) -> 21.86972652 | E84: 24.27983329 | F84: 33.91902293 | G84: 41.91241342 | H84: 46.94580739 | I84: 51.2559108 | J84: 52.42065136 | K84: 51.52816181 | L84: 47.47903978 | M84: 35.88184311 | N84: 23.41735305 | O84: 17.19674067
B86: LsolWtm | C86: LsolWtm = LsolW1tm - Qbuftm
C87: Month: | D87: Jan | E87: Feb | F87: Mar | G87: Apr | H87: May | I87: Jun | J87: Jul | K87: Aug | L87: Sep | M87: Oct | N87: Nov | O87: Dec
B88: Climate: | C88: Average | D88: =D76-D82 -> 86.59300198 | E88: =E76-E82 -> 158.0038556 | F88: 243.8583043 | G88: 308.6247965 | H88: 346.7717644 | I88: 357.8528912 | J88: 369.2954 | K88: 360.4096711 | L88: 304.4778102 | M88: 225.2003688 | N88: 115.8990256 | O88: 53.52953784
C89: Colder | D89: =D77-D83 -> 9.76 | E89: 83.0873793 | F89: 186.5875683 | G89: 290.7496477 | H89: 342.2855883 | I89: 359.6407677 | J89: 368.5515243 | K89: 314.2785784 | L89: 212.6044188 | M89: 81.68751475 | N89: 9.76 | O89: 9.76
C90: Warmer | D90: 217.2510059 | E90: 233.0613064 | F90: 296.2943904 | G90: 348.731032 | H90: 381.7500964 | I90: 410.0243749 | J90: 417.6650729 | K90: 411.8103415 | L90: 385.248101 | M90: 309.1704908 | N90: 227.403436 | O90: 186.5962188
A92: monthly non-solar heat contribution | B92: Qnonsol,tm | C92: Qnonsoltm = Lwhtm - LsolWtm (Vbu=0) | G92: Qnonsoltm = Lwhtm - LsolWtm + psbSol × Vbu/Vnom × (60 - Ta) × 0,732 = Lwhtm - LsolWtm
C93: Month: | D93: Jan | E93: Feb | F93: Mar | G93: Apr | H93: May | I93: Jun | J93: Jul | K93: Aug | L93: Sep | M93: Oct | N93: Nov | O93: Dec
B94: Climate: | C94: Average | D94: =Lwhtm-D88 -> 282.334998 | E94: 210.9241444 | F94: 125.0696957 | G94: 60.30320345 | H94: 22.15623563 | I94: 11.07510883 | J94: -0.367399953 | K94: 8.518328866 | L94: 64.45018981 | M94: 143.7276312 | N94: 253.0289744 | O94: 315.3984622
C95: Colder | D95: =Lwhtm-D89 -> 359.168 | E95: 285.8406207 | F95: 182.3404317 | G95: 78.17835233 | H95: 26.64241168 | I95: 9.287232284 | J95: 0.3764756917 | K95: 54.6494216 | L95: 156.3235812 | M95: 287.2404852 | N95: 359.168 | O95: 359.168
C96: Warmer | D96: =Lwhtm-D90 -> 151.6769941 | E96: 135.8666936 | F96: 72.6336096 | G96: 20.19696798 | H96: -12.82209645 | I96: -41.09637486 | J96: -48.73707291 | K96: -42.88234149 | L96: -16.32010098 | M96: 59.75750922 | N96: 141.524564 | O96: 182.3317812
A99: annual non-solar heat contribution | B99: Qnonsol
B100: Climate: | C100: Average | D100: =SUM(D94:O94) -> 1496.619573 | E100: kWh/a
C101: Colder | D101: =SUM(D95:O95) -> 2158.383012 | E101: kWh/a
C102: Warmer | D102: =SUM(D96:O96) -> 602.130133 | E102: kWh/a

Sheet Datenblatt_1 (hidden)
B2: Jahreszeitbedingte Raumheizungs-Energieeffizienz des Heizkessels | Q2: =Eingabe!C14 -> 0.95 | S2: "1"
B5: Temperaturregler | P5: + | Q5: =VLOOKUP(Eingabe!C25,Daten!A11:C18,3,FALSE) -> 0.04 | S5: "2"
B6: vom Datenblatt des Reglerherstellers
B9: Zusatzheizkessel
B10: vom Datenblatt des Kesselherstellers
I11: ( | J11: =IF(Eingabe!C19="JA",Eingabe!C21,0) -> 0 | K11: - "I") x 0,1 = | P11: ± | Q11: =IF(J11=0,0,(J11-Q2)*0.1) -> 0 | S11: "3"
B14: Solarer Beitrag
B16: vom Datenblatt der Solareinrichtung
G17: ("III" x | H17: =IF(SolAnl="NEIN",0,Asol) -> 6.78 | I17: + "IV" x | J17: =IF(SolAnl="NEIN",0,Eingabe!C27/1000) -> 0.3 | K17: ) x 0,9 x | L17: =IF(SolAnl="NEIN",0,Eingabe!C31) -> 0.82 | M17: / 100 x | N17: =IF(SolAnl="NEIN",0,Zwischenergebnisse!C16) -> 0.86 | O17: = | P17: + | Q17: =(Q53*H17+Q54*J17)*0.9*L17/100*N17 -> 0.07800101804 | S17: "4"
B20: Zusatzwärmepumpe
B21: vom Datenblatt des Wärmepumpenherstellers
I22: ( | J22: =IF(Eingabe!C22="NEIN",0,Eingabe!C24) -> 0 | K22: - "I") x "II" = | P22: + | Q22: =IF(Eingabe!C22="NEIN",0,(J22-Q51)*Q52) -> 0 | S22: "5"
B25: Solarer Beitrag und Zusatzwärmepumpe
B26: kleineren Wert auswählen | J26: "4" | M26: "5"
I27: 0,5 x | J27: =IF(Eingabe!C19="JA",Q17,0) -> 0 | K27: ODER | L27: 0,5 x | M27: =IF(SolAnl="JA",Q22,0) -> 0 | P27: - | Q27: =IF(J27<M27,J27,M27)*0.5 -> 0 | S27: "6"
B30: Jahreszeitbedingte Raumheizungs-Energieeffizienz der Verbundanlage | Q30: =SUM(Q2:Q27) -> 1.068001018 | S30: "7"
B33: Jahreszeitbedingte Raumheizungs-Energieeffizienz der Verbundanlage
B44: Einbau von Heizkessel und Zusatzwärmepumpe mit Niedertemperatur-Wärmestrahlern (<35°C)?
B45: vom Datenblatt des Wärmepumpenherstellers
J46: "7"
J47: =IF(Q52=0,0,Q30) -> 0 | K47: + (50% x "II") = | Q47: =IF(Q52=0,0,J47+(50%*Q52)) -> 0 | S47: "8"
B50: Bedeutung der Variablen:
B51: "I" | C51: Raumheizungs-Energieeffizienz hs des Vorzugsraumheizgerätes | Q51: =Q2 -> 0.95
B52: "II" | C52: Faktor zur Gewichtung der Wärmeleistung der Vorzugs- und Zusatzheizgeräte | Q52: =IF(AND(Eingabe!C19="NEIN",Eingabe!C22="NEIN"),0,Zwischenergebnisse!B63) -> 0
B53: "III" | C53: Der Ausdruck 294/(11xPrated) | Q53: =Zwischenergebnisse!B64 -> 1.781818182
B54: "IV" | C54: Der Ausdruck 115/(11xPrated) | Q54: =Zwischenergebnisse!B65 -> 0.696969697

Sheet Datenblatt_2 (hidden)
B2: Jahreszeitbedingte Raumheizungs-Energieeffizienz des Raumheizgeräts mit Kraft-Wärme-Kopplung | Q2: =Eingabe!C14 -> 0.95 | S2: "1"
B5: Temperaturregler | P5: + | Q5: =VLOOKUP(Eingabe!C25,Daten!A11:C18,3,FALSE) -> 0.04 | S5: "2"
B6: vom Datenblatt des Reglerherstellers
B9: Zusatzheizkessel
B10: vom Datenblatt des Kesselherstellers
I11: ( | J11: =IF(Eingabe!C19="NEIN",0,Eingabe!C21) -> 0 | K11: - "I") x "II" = | P11: ± | Q11: =IF(J11=0,0,(J11-Q35)*Q36) -> 0 | S11: "3"
B14: Solarer Beitrag
B16: vom Datenblatt der Solareinrichtung
G17: ("III" x | H17: =IF(SolAnl="NEIN",0,Asol) -> 6.78 | I17: + "IV" x | J17: =IF(SolAnl="NEIN",0,Eingabe!C27/1000) -> 0.3 | K17: ) x 0,7 x ( | L17: =IF(SolAnl="NEIN",0,Eingabe!C31) -> 0.82 | M17: / 100 ) x | N17: =IF(SolAnl="NEIN",0,Zwischenergebnisse!C16) -> 0.86 | O17: = | P17: + | Q17: =(Q37*H17+Q38*J17)*0.7*(L17/100*N17) -> 0.06066745847 | S17: "4"
B20: Jahreszeitbedingte Raumheizungs-Energieeffizienz der Verbundanlage | Q20: =SUM(Q2:Q18) -> 1.050667458 | S20: "7"
B23: Jahreszeitbedingte Raumheizungs-Energieeffizienz der Verbundanlage
B34: Bedeutung der Variablen:
B35: "I" | C35: Raumheizungs-Energieeffizienz hs des Vorzugsraumheizgerätes | Q35: =Q2 -> 0.95
B36: "II" | C36: Faktor zur Gewichtung der Wärmeleistung der Vorzugs- und Zusatzheizgeräte | Q36: =IF(AND(Eingabe!C19="NEIN",Eingabe!C22="NEIN"),0,Zwischenergebnisse!C63) -> 0
B37: "III" | C37: Der Ausdruck 294/(11xPrated) | Q37: =Zwischenergebnisse!C64 -> 1.781818182
B38: "IV" | C38: Der Ausdruck 115/(11xPrated) | Q38: =Zwischenergebnisse!C65 -> 0.696969697

Sheet Datenblatt_3 (hidden)
B2: Jahreszeitbedingte Raumheizungs-Energieeffizienz der Wärmepumpe | Q2: =Eingabe!C14 -> 0.95 | S2: "1"
B5: Temperaturregler | P5: + | Q5: =VLOOKUP(Eingabe!C25,Daten!A11:C18,3,FALSE) -> 0.04 | S5: "2"
B6: vom Datenblatt des Reglerherstellers
B9: Zusatzheizkessel
B10: vom Datenblatt des Kesselherstellers
I11: ( | J11: =IF(Eingabe!C19="NEIN",0,Eingabe!C21) -> 0 | K11: - "I") x "II" = | P11: ± | Q11: =IF(J11=0,0,(J11-Q42)*Q43) -> 0 | S11: "3"
B14: Solarer Beitrag
B16: vom Datenblatt der Solareinrichtung
G17: ("III" x | H17: =IF(SolAnl="NEIN",0,Asol) -> 6.78 | I17: + "IV" x | J17: =IF(SolAnl="JA",Eingabe!C27/1000,0) -> 0.3 | K17: ) x 0,45 x ( | L17: =IF(SolAnl="JA",Eingabe!C31,0) -> 0.82 | M17: ) x | N17: =IF(SolAnl="JA",Zwischenergebnisse!C16,0) -> 0.86 | O17: = | P17: + | Q17: =(Q44*H17+Q45*J17)*0.45*L17/100*N17 -> 0.03900050902 | S17: "4"
B20: Jahreszeitbedingte Raumheizungs-Energieeffizienz der Verbundanlage | Q20: =SUM(Q2:Q18) -> 1.029000509 | S20: "5"
B21: bei durchschnittlichem Klima
B24: Jahreszeitbedingte Raumheizungs-Energieeffizienz der Verbundanlage
B35: Jahreszeitbedingte Raumheizungs-Energieeffizienz bei kälterem und wärmerem Klima
H37: "5" | L37: "5"
G38: Kälter: | H38: =Q20 -> 1.029000509 | I38: - "V" = | J38: =H38-Q47 -> 0.919000509 | K38: Wärmer: | L38: =Q20 -> 1.029000509 | M38: + "VI" = | N38: =L38+Q49 -> 1.139000509 | S38: "6"
B41: Bedeutung der Variablen:
B42: "I" | C42: Raumheizungs-Energieeffizienz hs des Vorzugsraumheizgerätes | Q42: =Q2 -> 0.95
B43: "II" | C43: Faktor zur Gewichtung der Wärmeleistung der Vorzugs- und Zusatzheizgeräte | Q43: =IF(AND(Eingabe!C19="NEIN",Eingabe!C22="NEIN"),0,Zwischenergebnisse!D63) -> 0
B44: "III" | C44: Der Ausdruck 294/(11xPrated) | Q44: =Zwischenergebnisse!D64 -> 1.781818182
B45: "IV" | C45: Der Ausdruck 115/(11xPrated) | Q45: =Zwischenergebnisse!D65 -> 0.696969697
B46: "V" | C46: Wert der Differenz zwischen der jahreszeitbedingten Raumheizungs-Energieeffizienz bei durchschnittlichen
C47: und derjenigen bei kälteren Klimaverhältnissen in Prozent. | Q47: =Zwischenergebnisse!D66 -> 0.11
B48: "VI" | C48: Wert der Differenz zwischen der jahreszeitbedingten Raumheizungs-Energieeffizienz bei durchschnittlichen
C49: und derjenigen bei wärmeren Klimaverhältnissen in Prozent. | Q49: =Zwischenergebnisse!D67 -> 0.11

Sheet Datenblatt_4 (hidden)
B2: Jahreszeitbedingte Raumheizungs-Energieeffizienz der Niedertemperatur-Wärmepumpe | Q2: =Eingabe!C14 -> 0.95 | S2: "1"
B5: Temperaturregler | P5: + | Q5: =VLOOKUP(Eingabe!C25,Daten!A11:C18,3,FALSE) -> 0.04 | S5: "2"
B6: vom Datenblatt des Reglerherstellers
B9: Zusatzheizkessel
B10: vom Datenblatt des Kesselherstellers
I11: ( | J11: =IF(Eingabe!C19="JA",Eingabe!C21,0) -> 0 | K11: - "I") x "II" = | P11: ± | Q11: =IF(J11=0,0,(J11-Q42)*Q43) -> 0 | S11: "3"
B14: Solarer Beitrag
B16: vom Datenblatt der Solareinrichtung
G17: ("III" x | H17: =IF(SolAnl="NEIN",0,Asol) -> 6.78 | I17: + "IV" x | J17: =IF(SolAnl="NEIN",0,Eingabe!C27/1000) -> 0.3 | K17: ) x 0,45 x ( | L17: =IF(SolAnl="NEIN",0,Eingabe!C31) -> 0.82 | M17: / 100) x | N17: =IF(SolAnl="NEIN",0,Zwischenergebnisse!C16) -> 0.86 | O17: = | P17: + | Q17: =(Q44*H17+Q45*J17)*0.45*L17/100*N17 -> 0.03900050902 | S17: "4"
B20: Jahreszeitbedingte Raumheizungs-Energieeffizienz der Verbundanlage | Q20: =SUM(Q2:Q18) -> 1.029000509 | S20: "5"
B21: bei durchschnittlichem Klima
B24: Jahreszeitbedingte Raumheizungs-Energieeffizienz der Verbundanlage
B35: Jahreszeitbedingte Raumheizungs-Energieeffizienz bei kälterem und wärmerem Klima
H37: "5" | L37: "5"
G38: Kälter: | H38: =Q20 -> 1.029000509 | I38: - "V" = | J38: =H38-Q47 -> 0.919000509 | K38: Wärmer: | L38: =Q20 -> 1.029000509 | M38: + "VI" = | N38: =L38+Q49 -> 1.139000509
B41: Bedeutung der Variablen:
B42: "I" | C42: Raumheizungs-Energieeffizienz hs des Vorzugsraumheizgerätes | Q42: =Q2 -> 0.95
B43: "II" | C43: Faktor zur Gewichtung der Wärmeleistung der Vorzugs- und Zusatzheizgeräte | Q43: =IF(AND(Eingabe!C19="NEIN",Eingabe!C22="NEIN"),0,Zwischenergebnisse!E63) -> 0
B44: "III" | C44: Der Ausdruck 294/(11xPrated) | Q44: =Zwischenergebnisse!E64 -> 1.781818182
B45: "IV" | C45: Der Ausdruck 115/(11xPrated) | Q45: =Zwischenergebnisse!E65 -> 0.696969697
B46: "V" | C46: Wert der Differenz zwischen der jahreszeitbedingten Raumheizungs-Energieeffizienz bei durchschnittlichen
C47: und derjenigen bei kälteren Klimaverhältnissen in Prozent. | Q47: =Zwischenergebnisse!E66 -> 0.11
B48: "VI" | C48: Wert der Differenz zwischen der jahreszeitbedingten Raumheizungs-Energieeffizienz bei durchschnittlichen
C49: und derjenigen bei wärmeren Klimaverhältnissen in Prozent. | Q49: =Zwischenergebnisse!E67 -> 0.11

Sheet Datenblatt_5 (hidden)
B2: Warmwasserbereitungs-Energieeffizienz hwh des Kombiheizgerätes | Q2: =Zwischenergebnisse!F62 -> 0.84 | S2: "1"
B4: Angegebenes Lastprofil: | H4: =Eingabe!C38 -> XL | J4: =Eingabe!E38 -> bis zu 3 Bäder mit Badewanne, Dusche und Waschbecken mit 55°C
B7: Solarer Beitrag
B9: vom Datenblatt der Solareinrichtung
N10: ( 1,1 x "I" - 10%) x "II" - "III" - "I" = | P10: + | Q10: =IF(Eingabe!C26="NEIN",0,(1.1*Q45-0.1)*Q46-Q47-Q45) -> 0 | S10: "2"
B13: Warmwasserbereitungs-Energieeffizienz der Verbundanlage | Q13: =SUM(Q2:Q11) -> 0.84 | S13: "3"
B14: bei durchschnittlichem Klima
B17: Warmwasserbereitungs-Energieeffizienz der Verbundanlage bei durchschnittlichem Klima
B35: Jahreszeitbedingte Raumheizungs-Energieeffizienz bei kälterem und wärmerem Klima
H37: "3" | J37: "2"
G38: Kälter: | H38: =Q13 -> 0.84 | I38: - 0,2 x | J38: =Q10 -> 0 | K38: = | L38: =H38-0.2*J38 -> 0.84
H40: "3" | J40: "2"
G41: Wärmer: | H41: =Q13 -> 0.84 | I41: + 0,4 x | J41: =Q10 -> 0 | K41: = | L41: =H41+0.4*J41 -> 0.84
B44: Bedeutung der Variablen:
B45: "I" | C45: Warmwasserbereitungs-Energieeffizienz hwh des Vorzugsraumheizgerätes | Q45: =Zwischenergebnisse!F62 -> 0.84
B46: "II" | C46: Der Ausdruck (220 x Qref) / Qnonsol | Q46: =IF(Eingabe!C26="NEIN",0,Zwischenergebnisse!F63) -> 0
B47: "III" | C47: Der Ausdruck (2,5 x Qaux) / (220 x Qref) | Q47: =Zwischenergebnisse!F64 -> 0
B48: Qnonsol | C48: Jährlicher nichtsolarer Wärmebeitrag in kWh | Q48: =Qnonsolavg -> 1496.619573
B49: Qaux | C49: Jährlicher Hilfsstromverbrauch in kWh | Q49: =Qaux -> 105.04

Sheet Datenblatt_6 (hidden)
B2: Warmwasserbereitungs-Energieeffizienz hwh des Warmwasserbereiters | Q2: =Zwischenergebnisse!G62 -> 0.84 | S2: "1"
B4: Angegebenes Lastprofil: | H4: =Eingabe!C38 -> XL | J4: =Eingabe!E38 -> bis zu 3 Bäder mit Badewanne, Dusche und Waschbecken mit 55°C
B7: Solarer Beitrag
B9: vom Datenblatt der Solareinrichtung
N10: ( 1,1 x "I" - 10%) x "II" - "III" - "I" = | P10: + | Q10: =IF(Eingabe!C26="JA",(1.1*Q45-10%)*Q46-Q47-Q45,0) -> 0 | S10: "2"
B13: Warmwasserbereitungs-Energieeffizienz der Verbundanlage | Q13: =SUM(Q2:Q11) -> 0.84 | S13: "3"
B14: bei durchschnittlichem Klima
B17: Warmwasserbereitungs-Energieeffizienz der Verbundanlage bei durchschnittlichem Klima
B35: Jahreszeitbedingte Raumheizungs-Energieeffizienz bei kälterem und wärmerem Klima
H37: "3" | J37: "2"
G38: Kälter: | H38: =Q13 -> 0.84 | I38: - 0,2 x | J38: =Q10 -> 0 | K38: = | L38: =H38-0.2*J38 -> 0.84
H40: "3" | J40: "2"
G41: Wärmer: | H41: =Q13 -> 0.84 | I41: + 0,4 x | J41: =Q10 -> 0 | K41: = | L41: =H41+0.4*J41 -> 0.84
B44: Bedeutung der Variablen:
B45: "I" | C45: Warmwasserbereitungs-Energieeffizienz hwh des Vorzugsraumheizgerätes | Q45: =Q2 -> 0.84
B46: "II" | C46: Der Ausdruck (220 x Qref) / Qnonsol | Q46: =Zwischenergebnisse!G63 -> 0
B47: "III" | C47: Der Ausdruck (2,5 x Qaux) / (220 x Qref) | Q47: =Zwischenergebnisse!G64 -> 0
B48: Qnonsol | C48: Jährlicher nichtsolarer Wärmebeitrag in kWh | Q48: =Qnonsolavg -> 1496.619573
B49: Qaux | C49: Jährlicher Hilfsstromverbrauch in kWh | Q49: =Qaux -> 105.04

Sheet Label_1 (hidden)

Sheet Label_2 (hidden)

Sheet Label_3 (hidden)
